fUST/lending_fUST_20241121
["ID","MTS","AMOUNT","RATE_DAILY","PERIOD"]
[342796141,1732141841088,-500.0,0.0002303,2]
[342796142,1732141841097,-449.47406697,0.0002303,2]
[342796143,1732141841106,-500.0,0.0002303,2]
[342796144,1732141841115,-500.0,0.0002303,2]
[342796145,1732141841125,-727.64,0.0002303,2]
[342796146,1732141841134,-500.0,0.0002303,2]
[342796147,1732141841143,-500.0,0.0002303,2]
[342796148,1732141841152,-264.30842007,0.0002303,2]
[342796149,1732141841161,-500.0,0.0002303,2]
[342796150,1732141841173,-500.0,0.0002303,2]
[342796151,1732141841183,-643.80559468,0.0002303,2]
[342796152,1732141841191,-500.0,0.0002303,2]
[342796153,1732141841201,-500.0,0.0002303,2]
[342796154,1732141841210,-500.0,0.0002303,2]
[342796155,1732141841220,-500.0,0.0002303,2]
[342796156,1732141841229,-500.0,0.0002303,2]
[342796157,1732141841238,-436.79127988,0.00023031,2]
[342796158,1732141841247,-500.0,0.00023031,2]
[342796159,1732141841256,-502.3,0.00023031,2]
[342796160,1732141841266,-500.0,0.00023031,2]
[342796161,1732141841275,-500.0,0.00023031,2]
[342796162,1732141841284,-500.0,0.00023031,2]
[342796163,1732141841293,-500.0,0.00023031,2]
[342796164,1732141841303,-500.0,0.00023031,2]
[342796165,1732141841312,-500.0,0.00023031,2]
[342796166,1732141841322,-500.0,0.00023031,2]
[342796167,1732141841333,-500.0,0.00023031,2]
[342796168,1732141841343,-552.52515964,0.00023031,2]
[342796169,1732141841353,-500.0,0.00023031,2]
[342796170,1732141841363,-632.45,0.00023031,2]
[342796171,1732141841373,-500.0,0.00023031,2]
[342796172,1732141841382,-500.0,0.00023031,2]
[342796173,1732141841392,-649.03,0.00023031,2]
[342796174,1732141841402,-500.0,0.00023031,2]
[342796175,1732141841411,-500.0,0.00023031,2]
[342796176,1732141841422,-500.0,0.00023031,2]
[342796177,1732141841431,-500.0,0.00023031,2]
[342796178,1732141841440,-500.0,0.00023031,2]
[342796179,1732141841450,-500.0,0.00023031,2]
[342796180,1732141841460,-500.0,0.00023032,2]
[342796181,1732141841469,-500.0,0.00023032,2]
[342796182,1732141841481,-500.0,0.00023033,2]
[342796183,1732141841491,-500.0,0.00023033,2]
[342796184,1732141841500,-575.23654446,0.00023033,2]
[342796185,1732141841511,-500.0,0.00023033,2]
[342796186,1732141841523,-500.0,0.00023033,2]
[342796187,1732141841533,-153.34317015,0.00023204,2]
[342796188,1732141841543,-766.24,0.00023294,3]
[342796189,1732141841554,-500.0,0.00023304,2]
[342796190,1732141841564,-500.0,0.00023304,2]
[342796191,1732141841573,-500.0,0.00023304,2]
[342796192,1732141841584,-500.0,0.00023304,2]
[342796193,1732141841596,-500.0,0.00023304,2]
[342796194,1732141841605,-626.89077819,0.00023304,2]
[342796195,1732141841616,-500.0,0.00023304,2]
[342796196,1732141841625,-500.0,0.00023304,2]
[342796197,1732141841635,-500.0,0.00023304,2]
[342796198,1732141841643,-500.0,0.00023304,2]
[342796199,1732141841655,-500.0,0.00023304,2]
[342796200,1732141841664,-500.0,0.00023304,2]
[342796201,1732141841675,-744.23,0.00023304,2]
[342796202,1732141841684,-622.2,0.00023304,2]
[342796203,1732141841693,-500.0,0.00023304,2]
[342796204,1732141841702,-500.0,0.00023304,2]
[342796205,1732141841711,-500.0,0.00023304,2]
[342796206,1732141841720,-500.0,0.00023304,2]
[342796207,1732141841731,-500.0,0.00023304,2]
[342796208,1732141841741,-500.0,0.00023304,2]
[342796209,1732141841750,-500.0,0.00023304,2]
[342796210,1732141841759,-500.0,0.00023304,2]
[342796211,1732141841769,-727.64,0.00023304,2]
[342796212,1732141841778,-500.0,0.00023304,2]
[342796213,1732141841787,-500.0,0.00023304,2]
[342796214,1732141841796,-500.0,0.00023305,2]
[342796215,1732141841806,-175.41,0.00023305,2]
[342796216,1732141841816,-283.1405056,0.00023305,2]
[342796217,1732141841826,-500.0,0.00023305,2]
[342796218,1732141841835,-500.0,0.00023305,2]
[342796219,1732141841845,-500.0,0.00023305,2]
[342796220,1732141841855,-500.0,0.00023305,2]
[342796221,1732141841864,-500.0,0.00023305,2]
[342796222,1732141841873,-500.0,0.00023305,2]
[342796223,1732141841882,-500.0,0.00023305,2]
[342796224,1732141841891,-286.76532367,0.00023307,2]
[342796225,1732141841901,-498.18,0.00023307,2]
[342796226,1732141841910,-500.0,0.0002346,2]
[342796227,1732141841921,-500.0,0.0002346,2]
[342796228,1732141841930,-562.9393885,0.0002346,2]
[342796229,1732141841939,-503.56010155,0.0002346,2]
[342796230,1732141841948,-500.0,0.00023474,2]
[342796231,1732141841957,-500.0,0.00023474,2]
[342796232,1732141841967,-500.0,0.00023474,2]
[342796233,1732141841976,-500.0,0.00023518,2]
[342796234,1732141841985,-500.0,0.00023522,2]
[342796235,1732141841994,-753.34870071,0.00023551,2]
[342796236,1732141842003,-500.0,0.00023578,2]
[342796237,1732141842012,-500.0,0.00023578,2]
[342796238,1732141842021,-500.0,0.00023578,2]
[342796239,1732141842030,-500.0,0.00023578,2]
[342796240,1732141842039,-500.0,0.00023578,2]
[342796241,1732141842048,-500.0,0.00023578,2]
[342796242,1732141842057,-500.0,0.00023578,2]
[342796243,1732141842066,-500.0,0.00023578,2]
[342796244,1732141842075,-500.0,0.00023578,2]
[342796245,1732141842084,-500.0,0.00023578,2]
[342796246,1732141842094,-500.0,0.00023578,2]
[342796247,1732141842103,-744.23,0.00023578,2]
[342796248,1732141842113,-500.0,0.00023578,2]
[342796249,1732141842122,-500.0,0.00023578,2]
[342796250,1732141842131,-500.0,0.00023578,2]
[342796251,1732141842140,-500.0,0.00023578,2]
[342796252,1732141842149,-446.8,0.00023578,2]
[342796253,1732141842159,-500.0,0.00023578,2]
[342796254,1732141842168,-727.64,0.00023578,2]
[342796255,1732141842177,-500.0,0.00023578,2]
[342796256,1732141842186,-500.0,0.00023578,2]
[342796257,1732141842195,-500.0,0.00023579,2]
[342796258,1732141842205,-500.0,0.00023579,2]
[342796259,1732141842214,-500.0,0.00023579,2]
[342796260,1732141842224,-500.0,0.00023579,2]
[342796261,1732141842234,-164.66,0.00023778,4]
[342796262,1732141842243,-500.0,0.00023852,2]
[342796263,1732141842252,-500.0,0.00023852,2]
[342796264,1732141842262,-500.0,0.00023852,2]
[342796265,1732141842271,-200.0,0.00023852,2]
[342796266,1732141842280,-500.0,0.00023852,2]
[342796267,1732141842289,-338.05576298,0.00023852,2]
[342796268,1732141842297,-500.0,0.00023852,2]
[342796269,1732141842385,-500.0,0.00023852,2]
[342796270,1732141842395,-500.0,0.00023852,2]
[342796271,1732141842404,-500.0,0.00023852,2]
[342796272,1732141842412,-500.0,0.00023852,2]
[342796273,1732141842424,-500.0,0.00023852,2]
[342796274,1732141842433,-500.0,0.00023852,2]
[342796275,1732141842442,-500.0,0.00023852,2]
[342796276,1732141842451,-500.0,0.00023852,2]
[342796277,1732141842460,-500.0,0.00023852,2]
[342796278,1732141842469,-500.0,0.00023852,2]
[342796279,1732141842688,-500.0,0.00023852,2]
[342796280,1732141842698,-500.0,0.00023852,2]
[342796281,1732141842707,-500.0,0.00023852,2]
[342796282,1732141842716,-500.0,0.00023852,2]
[342796283,1732141842726,-500.0,0.00023852,2]
[342796284,1732141842735,-500.0,0.00023852,2]
[342796285,1732141842744,-500.0,0.00023852,2]
[342796286,1732141842753,-500.0,0.00023852,2]
[342796287,1732141842762,-500.0,0.00023852,2]
[342796288,1732141842772,-500.0,0.00023852,2]
[342796289,1732141842782,-500.0,0.00023852,2]
[342796290,1732141842791,-500.0,0.00023852,2]
[342796291,1732141842799,-500.0,0.00023852,2]
[342796292,1732141842808,-500.0,0.00023852,2]
[342796293,1732141842817,-500.0,0.00023852,2]
[342796294,1732141842826,-500.0,0.00023852,2]
[342796295,1732141842835,-500.0,0.00023852,2]
[342796296,1732141842844,-500.0,0.00023852,2]
[342796297,1732141842854,-500.0,0.00023852,2]
[342796298,1732141842863,-500.0,0.00023852,2]
[342796299,1732141842872,-500.0,0.00023852,2]
[342796300,1732141842882,-500.0,0.00023852,2]
[342796301,1732141842891,-1000.0,0.00023852,2]
[342796302,1732141842899,-500.0,0.00023852,2]
[342796303,1732141842908,-744.23,0.00023852,2]
[342796304,1732141842918,-500.0,0.00023852,2]
[342796305,1732141842927,-500.0,0.00023852,2]
[342796306,1732141842936,-500.0,0.00023852,2]
[342796307,1732141842946,-500.0,0.00023852,2]
[342796308,1732141842955,-500.0,0.00023852,2]
[342796309,1732141842965,-500.0,0.00023852,2]
[342796310,1732141842974,-500.0,0.00023852,2]
[342796311,1732141842983,-500.0,0.00023852,2]
[342796312,1732141842993,-500.0,0.00023852,2]
[342796314,1732141843002,-727.64,0.00023852,2]
[342796317,1732141843011,-500.0,0.00023852,2]
[342796318,1732141843020,-500.0,0.00023852,2]
[342796319,1732141843030,-500.0,0.00023852,2]
[342796320,1732141843039,-500.0,0.00023853,2]
[342796321,1732141843048,-534.56,0.00023853,2]
[342796322,1732141843057,-500.0,0.00023853,2]
[342796323,1732141843066,-500.0,0.00024022,2]
[342796324,1732141843076,-153.21755222,0.00024125,2]
[342796325,1732141843085,-378.32937253,0.00024126,2]
[342796326,1732141843094,-223.34,0.00024126,2]
[342796327,1732141843104,-500.0,0.00024126,2]
[342796328,1732141843113,-200.0,0.00024126,2]
[342796329,1732141843122,-215.14514516,0.00024126,2]
[342796331,1732141843131,-500.0,0.00024126,2]
[342796332,1732141843140,-500.0,0.00024126,2]
[342796333,1732141843150,-500.0,0.00024126,2]
[342796334,1732141843160,-500.0,0.00024126,2]
[342796335,1732141843171,-500.0,0.00024126,2]
[342796336,1732141843180,-513.05638032,0.00024126,2]
[342796337,1732141843189,-500.0,0.00024126,2]
[342796338,1732141843198,-500.0,0.00024126,2]
[342796339,1732141843208,-542.13212734,0.00024126,2]
[342796340,1732141843217,-500.0,0.00024126,2]
[342796341,1732141843228,-500.0,0.00024126,2]
[342796342,1732141843238,-500.0,0.00024126,2]
[342796343,1732141843247,-500.0,0.00024126,2]
[342796344,1732141843257,-500.0,0.00024126,2]
[342796345,1732141843267,-500.0,0.00024126,2]
[342796346,1732141843277,-500.0,0.00024126,2]
[342796347,1732141843287,-500.0,0.00024126,2]
[342796348,1732141843296,-500.0,0.00024126,2]
[342796349,1732141843305,-500.0,0.00024126,2]
[342796350,1732141843315,-601.02,0.00024126,2]
[342796351,1732141843324,-500.0,0.00024126,2]
[342796352,1732141843333,-744.23,0.00024126,2]
[342796353,1732141843342,-500.0,0.00024126,2]
[342796355,1732141843351,-500.0,0.00024126,2]
[342796357,1732141843360,-500.0,0.00024126,2]
[342796359,1732141843369,-500.0,0.00024126,2]
[342796361,1732141843378,-503.67,0.00024126,2]
[342796362,1732141843387,-500.0,0.00024126,2]
[342796363,1732141843396,-727.64,0.00024126,2]
[342796364,1732141843406,-500.0,0.00024126,2]
[342796365,1732141843415,-500.0,0.00024126,2]
[342796366,1732141843428,-500.0,0.00024126,2]
[342796367,1732141843438,-500.0,0.00024127,2]
[342796368,1732141843447,-458.51734225,0.000244,2]
[342796369,1732141843456,-288.53,0.000244,2]
[342796371,1732141843466,-500.0,0.000244,2]
[342796372,1732141843476,-500.0,0.000244,2]
[342796374,1732141843489,-744.23,0.000244,2]
[342796376,1732141843498,-389.5,0.000244,2]
[342796378,1732141843507,-500.0,0.000244,2]
[342796379,1732141843516,-500.0,0.000244,2]
[342796380,1732141843525,-727.64,0.000244,2]
[342796381,1732141843535,-500.0,0.000244,2]
[342796382,1732141843544,-318.42,0.00024401,2]
[342796383,1732141843553,-753.34870071,0.00024445,2]
[342796384,1732141843562,-281.02001979,0.00024674,2]
[342796385,1732141843572,-500.0,0.00024674,2]
[342796386,1732141843582,-744.23,0.00024674,2]
[342796387,1732141843591,-500.0,0.00024674,2]
[342796388,1732141843600,-500.0,0.00024674,2]
[342796389,1732141843609,-727.64,0.00024674,2]
[342796390,1732141843618,-481.48,0.00024674,2]
[342796391,1732141843627,-500.0,0.00024948,2]
[342796392,1732141843636,-744.23,0.00024948,2]
[342796393,1732141843645,-500.0,0.00024948,2]
[342796394,1732141843654,-500.0,0.00024948,2]
[342796395,1732141843664,-727.64,0.00024948,2]
[342796396,1732141843676,-1381.0016456,0.00025,2]
[342796397,1732141843686,-234763.24139694,0.00025,2]
[342796398,1732141843695,-9581.61686752,0.00025,2]
[342796399,1732141843759,-2102.03959086,0.00025,2]
[342796400,1732141843768,-500.0,0.00025222,2]
[342796401,1732141843777,-744.23,0.00025222,2]
[342796402,1732141843786,-500.0,0.00025222,2]
[342796403,1732141843795,-500.0,0.00025222,2]
[342796404,1732141843805,-727.64,0.00025222,2]
[342796405,1732141843814,-753.34870071,0.00025339,2]
[342796406,1732141843823,-500.0,0.00025496,2]
[342796407,1732141843832,-744.23,0.00025496,2]
[342796408,1732141843842,-500.0,0.00025496,2]
[342796409,1732141843851,-500.0,0.00025496,2]
[342796410,1732141843860,-727.64,0.00025496,2]
[342796411,1732141843869,-326.34,0.000256,2]
[342796412,1732141843878,-500.0,0.0002577,2]
[342796413,1732141843887,-744.23,0.0002577,2]
[342796414,1732141843897,-500.0,0.0002577,2]
[342796415,1732141843906,-500.0,0.0002577,2]
[342796416,1732141843915,-727.64,0.0002577,2]
[342796417,1732141843926,-500.0,0.00026044,2]
[342796418,1732141843935,-744.23,0.00026044,2]
[342796419,1732141843945,-180.26859661,0.00026044,2]
[342796420,1732141843954,-437.58554116,0.00026044,2]
[342796421,1732141843963,-727.64,0.00026044,2]
[342796422,1732141843972,-153.34317013,0.0002606,2]
[342796423,1732141843981,-753.34870071,0.00026233,2]
[342796424,1732141843990,-500.0,0.00026318,2]
[342796425,1732141843999,-744.23,0.00026318,2]
[342796426,1732141844007,-727.64,0.00026318,2]
[342796427,1732141844017,-500.0,0.00026592,2]
[342796428,1732141844026,-744.23,0.00026592,2]
[342796429,1732141844035,-727.64,0.00026592,2]
[342796430,1732141844045,-495.2,0.00026761,15]
[342796431,1732141844054,-500.0,0.00026866,2]
[342796432,1732141844063,-744.23,0.00026866,2]
[342796433,1732141844071,-727.64,0.00026866,2]
[342796434,1732141844084,-165.0,0.00027,2]
[342796435,1732141844093,-753.34870071,0.00027127,2]
[342796436,1732141844102,-500.0,0.0002714,2]
[342796437,1732141844111,-744.23,0.0002714,2]
[342796438,1732141844123,-727.64,0.0002714,2]
[342796439,1732141844132,-500.0,0.00027414,2]
[342796440,1732141844141,-744.23,0.00027414,2]
[342796441,1732141844150,-727.64,0.00027414,2]
[342796442,1732141844159,-500.0,0.00027688,2]
[342796443,1732141844171,-744.23,0.00027688,2]
[342796444,1732141844179,-727.64,0.00027688,2]
[342796445,1732141844188,-500.0,0.00027962,2]
[342796446,1732141844197,-744.23,0.00027962,2]
[342796447,1732141844207,-727.64,0.00027962,2]
[342796448,1732141844217,-743.58512375,0.00028,10]
[342796449,1732141844227,-753.34870071,0.00028021,2]
[342796450,1732141844237,-330.0,0.00028119,2]
[342796451,1732141844246,-500.0,0.00028236,2]
[342796452,1732141844256,-744.23,0.00028236,2]
[342796453,1732141844265,-727.64,0.00028236,2]
[342796454,1732141844275,-500.0,0.0002851,2]
[342796455,1732141844285,-744.23,0.0002851,2]
[342796456,1732141844294,-727.64,0.0002851,2]
[342796457,1732141844304,-265.29726509,0.00028784,2]
[342796458,1732141844314,-744.23,0.00028784,2]
[342796459,1732141844324,-727.64,0.00028784,2]
[342796460,1732141844334,-160.0,0.00028907,5]
[342796461,1732141844344,-1000.0,0.00028915,2]
[342796462,1732141844353,-153.34317013,0.00028915,2]
[342796463,1732141844362,-753.34870071,0.00028915,2]
[342796464,1732141844371,-24272.04,0.00028978,10]
[342796465,1732141844380,-20226.7,0.00028978,10]
[342796466,1732141844390,-500.0,0.00028997,2]
[342796467,1732141844399,-501.0,0.00029,2]
[342796468,1732141844408,-500.0,0.00029013,5]
[342796469,1732141844418,-500.0,0.00029013,10]
[342796470,1732141844427,-721.05213733,0.00029015,2]
[342796471,1732141844436,-290426.07241175,0.00029015,10]
[342796501,1732143032858,-320.55101969,0.00018,2]
[342796502,1732143032872,-1599.8101595,0.00022728,2]
[342796503,1732143032882,-500.0,0.00022755,2]
[342796505,1732143032892,-200.0,0.00022755,2]
[342796507,1732143032903,-492.09029992,0.00022755,2]
[342796509,1732143032912,-0.95294099,0.00022755,2]
[342796576,1732143038645,-332.03419878,0.00022755,2]
[342796578,1732143038655,-500.0,0.00022755,2]
[342796580,1732143038665,-249.28922344,0.00022755,2]
[342796582,1732143038678,-250.71077656,0.00022755,2]
[342796584,1732143038687,-249.28705604,0.00022755,2]
[342796733,1732143040481,-250.71294396,0.00022755,2]
[342796735,1732143040490,-500.0,0.00022755,2]
[342796737,1732143040500,-500.0,0.00022755,2]
[342796739,1732143040509,-500.0,0.00022755,2]
[342796741,1732143040518,-500.0,0.00022755,2]
[342796743,1732143040528,-500.0,0.00022755,2]
[342796744,1732143040536,-500.0,0.00022755,2]
[342796747,1732143040546,-500.0,0.00022755,2]
[342796749,1732143040557,-500.0,0.00022755,2]
[342796751,1732143040567,-391.08073377,0.00022755,2]
[342796753,1732143040576,-368.40132177,0.00023029,2]
[342796755,1732143040585,-164.66,0.00023784,5]
[342796757,1732143040594,-500.0,0.00024,2]
[342796759,1732143040604,-500.0,0.0002406,2]
[342796760,1732143040614,-500.0,0.0002406,2]
[342796762,1732143040623,-500.0,0.00024888,2]
[342796764,1732143040636,-500.0,0.00024888,2]
[342796766,1732143040645,-219.45,0.00024888,2]
[342796768,1732143040654,-500.0,0.00024888,2]
[342796769,1732143040663,-500.0,0.00024888,2]
[342796771,1732143040672,-500.0,0.00024888,2]
[342796773,1732143040682,-500.0,0.00024888,2]
[342796775,1732143040692,-500.0,0.00024888,2]
[342796777,1732143040701,-500.0,0.00024888,2]
[342796779,1732143040711,-500.0,0.00024888,2]
[342796780,1732143040720,-579.94,0.00024888,2]
[342796782,1732143040729,-500.0,0.00024888,2]
[342796784,1732143040739,-500.0,0.00024888,2]
[342796786,1732143040751,-500.0,0.00024888,2]
[342796788,1732143040763,-500.0,0.00024888,2]
[342796790,1732143040774,-500.0,0.00024889,2]
[342796792,1732143040787,-500.0,0.00024889,2]
[342796794,1732143040799,-500.0,0.00024889,2]
[342796796,1732143040810,-500.0,0.00024889,2]
[342796798,1732143040822,-500.0,0.00024889,2]
[342796800,1732143040833,-500.0,0.00024889,2]
[342796802,1732143040843,-500.0,0.00024889,2]
[342796804,1732143040853,-529.3,0.00024889,2]
[342796806,1732143040864,-500.0,0.00024889,2]
[342796808,1732143040876,-375.76811929,0.00024889,2]
[342796810,1732143040888,-500.0,0.00024889,2]
[342796811,1732143040898,-244.44252898,0.00025162,2]
[342796813,1732143040909,-162.81,0.00025162,2]
[342796816,1732143040920,-227.64879162,0.00025163,2]
[342796817,1732143040931,-293.7,0.000256,2]
[342796820,1732143040943,-527.75,0.00026761,15]
[342796821,1732143040955,-153.0,0.00027306,2]
[342796823,1732143040965,-153.0,0.00027306,2]
[342796825,1732143040976,-153.0,0.00027306,2]
[342796827,1732143040988,-21594.63515042,0.00028904,2]
[342796830,1732143041003,-695.70864234,0.00028904,2]
[342796832,1732143041016,-619.71305479,0.00028904,2]
[342796834,1732143041028,-261.546,0.00028904,2]
[342797026,1732143043784,-500.0,0.00025163,2]
[342797028,1732143043795,-500.0,0.00025437,2]
[342797030,1732143043806,-3059.78684285,0.00028904,2]
[342797033,1732143043826,-500.0,0.00025711,2]
[342797035,1732143043838,-74.70720266,0.00028904,2]
[342797037,1732143043848,-8572.9826254,0.00028904,2]
[342797040,1732143043859,-1136.66736699,0.00028907,2]
[342797042,1732143043874,-1000.0,0.00028907,2]
[342797044,1732143043886,-330.0,0.00028915,2]
[342797046,1732143043896,-235.91409388,0.00028996,2]
[342797048,1732143043905,-4039.90576533,0.00028997,10]
[342797050,1732143043918,-12815.67423467,0.00028997,10]
[342797052,1732143043928,-14046.32,0.00028997,10]
[342797055,1732143043941,-150.112242,0.00029,14]
[342797057,1732143043951,-360.52606867,0.00029007,2]
[342797059,1732143043961,-44897.4257905,0.00029007,10]
[342797061,1732143043973,-425.58490074,0.00029007,10]
[342797357,1732143046911,-500.0,0.00025985,2]
[342797359,1732143046923,-184.66197027,0.00026259,2]
[342815319,1732143239556,558.705393,0.00023,10]
[342816188,1732144238371,-505.4234493,0.00018,2]
[342816190,1732144238383,-1630.87326155,0.00018,2]
[342816192,1732144238395,-3484.42986272,0.00018,2]
[342816194,1732144238405,-245.0,0.00024887,2]
[342816196,1732144238414,-500.0,0.00024888,2]
[342816199,1732144238424,-533.82,0.00024888,2]
[342816200,1732144238433,-638.85,0.00024888,2]
[342816203,1732144238443,-169.90310974,0.00024888,2]
[342816205,1732144238452,-500.0,0.00024888,2]
[342816207,1732144238462,-500.0,0.00024888,2]
[342816208,1732144238471,-301.73,0.000256,2]
[342816210,1732144238482,-202.687112,0.00025759,2]
[342816212,1732144238491,-936.85622844,0.00026349,2]
[342816227,1732144238615,-528.71754969,0.00026349,2]
[342820422,1732144361843,170.826526,0.00013973,2]
[342820423,1732145067887,166.198409,0.00013973,2]
[342820431,1732145310458,1981.07639951,0.00015,7]
[342820473,1732145432191,-4104.519,0.00018,2]
[342820474,1732145432203,-2911.106,0.00018,2]
[342820475,1732145432212,-360.93111459,0.0001999,2]
[342820476,1732145432221,-300.0,0.0002369,2]
[342820477,1732145432231,-300.0,0.0002369,2]
[342820478,1732145432240,-262.8581214,0.0002369,2]
[342820479,1732145432259,-3647.80709884,0.00023691,2]
[342820491,1732145438224,-7964.80355884,0.00023691,2]
[342820492,1732145438236,-4337.03056432,0.00023691,2]
[342820493,1732145438245,-1000.0,0.000239,3]
[342820494,1732145438254,-235.52195255,0.00023903,2]
[342820495,1732145438263,-18137.16455179,0.00023904,2]
[342820582,1732145633337,591.76374159,0.00023,10]
[342820583,1732145641583,299.2479134,0.00023,10]
[342820584,1732145728256,166.198409,0.00013973,2]
[342820612,1732146511065,168.956965,0.00013973,2]
[342820636,1732146632290,-335.5000105,0.00018,2]
[342820637,1732146632302,-556.86521642,0.00018,2]
[342820638,1732146632375,-633.90707799,0.00018,2]
[342820639,1732146632390,-5489.35269509,0.00018,2]
[342820640,1732146632402,-300.0,0.00021848,2]
[342820641,1732146632413,-300.0,0.00021848,2]
[342820642,1732146632423,-6288.6237337,0.00021849,2]
[342820643,1732146632434,-1398.9975466,0.00021964,2]
[342820644,1732146632446,-160.0,0.00022,2]
[342820645,1732146632457,-353.72,0.00022527,2]
[342820646,1732146632469,-10633.094148,0.00022537,2]
[342820647,1732146632480,-1279.75325337,0.000227,2]
[342820648,1732146632491,-202.687112,0.00022768,2]
[342820649,1732146632502,-10633.094148,0.00023222,2]
[342820650,1732146632512,-166.62001864,0.00023365,2]
[342820651,1732146632523,-152.0,0.00023406,2]
[342820652,1732146632534,-353.72,0.0002368,2]
[342820653,1732146632545,-262.8581214,0.0002369,2]
[342820654,1732146632556,-360.28161266,0.0002369,2]
[342820655,1732146632567,-151.0,0.0002369,7]
[342820656,1732146632578,-394.70253032,0.0002369,2]
[342820657,1732146632590,-500.0,0.0002369,2]
[342820658,1732146632604,-450.24169491,0.0002369,2]
[342820659,1732146632615,-10363.69,0.0002369,2]
[342820660,1732146632626,-151.0,0.0002369,7]
[342820661,1732146632636,-500.0,0.0002369,2]
[342820662,1732146632647,-500.0,0.0002369,2]
[342820663,1732146632657,-151.0,0.0002369,7]
[342820664,1732146632667,-500.0,0.0002369,2]
[342820665,1732146632678,-948.690745,0.0002369,7]
[342820666,1732146632689,-151.0,0.0002369,7]
[342820667,1732146632701,-183.30412702,0.0002369,2]
[342820668,1732146632712,-948.690745,0.0002369,7]
[342820669,1732146632724,-500.07896761,0.0002369,2]
[342820670,1732146632734,-500.0,0.0002369,2]
[342820671,1732146632746,-584.65532492,0.0002369,2]
[342820672,1732146632755,-2460.97,0.0002369,2]
[342820673,1732146632765,-500.0,0.0002369,2]
[342820674,1732146632775,-190.426317,0.0002369,7]
[342820675,1732146632785,-500.0,0.0002369,2]
[342820676,1732146632797,-201.59727848,0.0002369,2]
[342820677,1732146632807,-190.426317,0.0002369,7]
[342820678,1732146632817,-500.0,0.0002369,2]
[342820679,1732146632828,-500.0,0.0002369,2]
[342820680,1732146632839,-151.0,0.0002369,7]
[342820681,1732146632852,-151.0,0.0002369,7]
[342820682,1732146632862,-330.27,0.0002369,2]
[342820683,1732146632874,-500.0,0.0002369,2]
[342820684,1732146632885,-177.9,0.0002369,2]
[342820685,1732146632896,-498.75669524,0.0002369,2]
[342820686,1732146632907,-151.0,0.0002369,7]
[342820687,1732146632918,-500.0,0.0002369,2]
[342820688,1732146632931,-501.00285141,0.0002369,2]
[342820689,1732146632943,-500.0,0.0002369,2]
[342820690,1732146632954,-151.0,0.0002369,7]
[342820691,1732146632967,-151.0,0.0002369,7]
[342820692,1732146632979,-151.0,0.0002369,7]
[342820693,1732146632989,-521.22092098,0.0002369,2]
[342820694,1732146632999,-151.0,0.0002369,7]
[342820696,1732146633011,-151.0,0.0002369,7]
[342820698,1732146633021,-500.26188364,0.0002369,2]
[342820700,1732146633032,-516.17485407,0.0002369,2]
[342820702,1732146633041,-500.0,0.0002369,2]
[342820705,1732146633052,-151.0,0.0002369,7]